[Event "2nd Namma Bengaluru Open-A 2025"]
[Site "Bengaluru"]
[Date "2025.04.12"]
[Round "4.29"]
[White "Vandan Alankar Sawai"]
[Black "Savchenko, Boris"]
[Result "1/2-1/2"]
[Annotator "ChessBase"]
[ECO "B94"]
[WhiteElo "2131"]
[BlackElo "2459"]
[PlyCount "112"]
[EventDate "2025.04.10"]
[EventType "swiss"]
[EventCountry "IND"]
[SourceTitle "playchess.com"]
[Source "ChessBase"]
[SourceQuality "1"]
[TimeControl "5400+30"]

1. e4 {[%emt 1:31:00]} c5 {[%emt 0:00:16]} 2. Nf3 {[%emt 0:00:00]} d6 {[%emt 0:00:29]} 3. d4 {[%emt 0:00:00]} cxd4 {[%emt 0:00:05]} 4. Nxd4 {[%emt 0:00:00]} Nf6 {[%emt 0:00:04]} 5. Nc3 {[%emt 0:00:00]} a6 {[%emt 0:00:06]} 6. Bg5 {[%emt 0:00:00]} Nbd7 {[%emt 0:00:13]} 7. Qe2 {[%emt 0:00:00]} g6 {[%emt 0:00:24]} 8. f4 {[%emt 0:00:00]} Bg7 {[%emt 0:00:07]} 9. O-O-O {[%emt 0:00:00]} O-O {[%emt 0:00:06]} 10. g4 {[%emt 0:00:00]} Qc7 {[%emt 0:09:05]} 11. f5 {[%emt 0:00:00]} b5 {[%emt 0:00:52]} 12. h4 {[%emt 0:00:00]} Bb7 {[%emt 0:05:07]} 13. Bg2 {[%emt 0:00:00]} Qc4 {[%emt 0:04:39]} 14. Qxc4 {[%emt 0:00:00]} bxc4 {[%emt 0:00:07]} 15. Bxf6 {[%emt 0:00:00]} Nxf6 {[%emt 0:04:02]} 16. Bf3 {[%emt 0:00:00]} Rac8 {[%emt 0:00:53]} 17. g5 {[%emt 0:00:00]} Nd7 {[%emt 0:00:26]} 18. Rhf1 {[%emt 0:00:00]} Rc5 {[%emt 0:01:43]} 19. Bg4 {[%emt 0:00:00]} Ne5 {[%emt 0:01:09]} 20. Be2 {[%emt 0:00:00]} Nd3+ {[%emt 0:01:33]} 21. cxd3 {[%emt 0:00:00]} Bxd4 {[%emt 0:00:08]} 22. dxc4 {[%emt 0:00:00]} Bxc3 {[%emt 0:00:09]} 23. bxc3 {[%emt 0:00:00]} Ra5 {[%emt 0:02:04]} 24. Rd2 {[%emt 0:00:00]} Bxe4 {[%emt 0:00:12]} 25. f6 {[%emt 0:00:00]} Re8 {[%emt 0:02:52]} 26. fxe7 {[%emt 0:00:00]} Rxe7 {[%emt 0:00:08]} 27. Rf6 {[%emt 0:00:00]} d5 {[%emt 0:06:24]} 28. cxd5 {[%emt 0:00:00]} Bxd5 {[%emt 0:00:05]} 29. Rxa6 {[%emt 0:00:00]} Rc5 {[%emt 0:00:05]} 30. Kd1 {[%emt 0:00:00]} Kg7 {[%emt 0:01:14]} 31. Rd6 {[%emt 0:00:00]} Be6 {[%emt 0:01:11]} 32. Rc2 {[%emt 0:00:00]} Bf5 {[%emt 0:00:55]} 33. Bd3 {[%emt 0:00:00]} h6 {[%emt 0:01:57]} 34. gxh6+ {[%emt 0:00:00]} Kxh6 {[%emt 0:00:05]} 35. Bxf5 {[%emt 0:00:00]} Rxf5 {[%emt 0:00:06]} 36. Rd4 {[%emt 0:00:00]} Rf1+ {[%emt 0:02:44]} 37. Kd2 {[%emt 0:00:00]} f5 {[%emt 0:00:15]} 38. c4 {[%emt 0:00:00]} f4 {[%emt 0:00:43]} 39. c5 {[%emt 0:00:00]} Kh5 {[%emt 0:00:13]} 40. Rcc4 {[%emt 0:00:00]} f3 {[%emt 0:01:30]} 41. Re4 {[%emt 0:00:00]} Rf7 {[%emt 0:04:49]} 42. Rf4 {[%emt 0:00:00]} Rd7+ {[%emt 0:01:18]} 43. Ke3 {[%emt 0:00:00]} Re7+ {[%emt 0:04:38]} 44. Rfe4 {[%emt 0:01:53]} Rf7 {[%emt 0:00:35]} 45. Rf4 {[%emt 0:01:53]} Re7+ {[%emt 0:00:06]} 46. Rce4 {[%emt 0:01:14]} Rxe4+ {[%emt 0:01:45]} 47. Rxe4 {[%emt 0:00:24]} Rc1 {[%emt 0:00:22]} 48. Re5+ {[%emt 0:03:08]} Kxh4 {[%emt 0:02:27]} 49. Kxf3 {[%emt 0:00:03]} g5 {[%emt 0:00:10]} 50. Ke4 {[%emt 0:01:15]} g4 {[%emt 0:01:52]} 51. Kd5 {[%emt 0:00:03]} g3 {[%emt 0:00:07]} 52. Re2 {[%emt 0:00:05]} Rd1+ {[%emt 0:02:47]} 53. Kc6 {[%emt 0:00:15]} Kh3 {[%emt 0:02:00]} 54. Kb7 {[%emt 0:02:59]} Rb1+ {[%emt 0:00:10]} 55. Ka6 {[%emt 0:00:27]} Rc1 {[%emt 0:00:09]} 56. Kb6 {[%emt 0:00:08]} Rb1+ {[%emt 0:00:05]} 1/2-1/2

[Event "2nd Namma Bengaluru Open-A 2025"]
[Site "Bengaluru"]
[Date "2025.04.12"]
[Round "4.30"]
[White "Audi Ameya"]
[Black "Avadhoot Lokesh Bhakti Brahme"]
[Result "1-0"]
[Annotator "ChessBase"]
[ECO "A13"]
[WhiteElo "2404"]
[BlackElo "2112"]
[PlyCount "73"]
[EventDate "2025.04.10"]
[EventType "swiss"]
[EventCountry "IND"]
[SourceTitle "playchess.com"]
[Source "ChessBase"]
[SourceQuality "1"]
[TimeControl "5400+30"]

1. Nf3 Nf6 2. c4 e6 3. e3 b6 4. b3 Bb7 5. Bb2 d5 6. Nc3 Nbd7 7. Rc1 a6 8. cxd5 exd5 9. Ne2 g6 10. g3 Bg7 11. Bg2 Rc8 12. O-O O-O 13. Nf4 Qe7 14. Rc2 c5 15. Qa1 Rfd8 16. Rfc1 b5 17. h4 h5 18. Ne1 Nf8 19. Ned3 c4 20. bxc4 dxc4 21. Bxb7 Qxb7 22. Bxf6 Bxf6 23. Qxf6 cxd3 24. Rxc8 Rxc8 25. Nxd3 Rxc1+ 26. Nxc1 a5 27. Qb2 Ne6 28. a4 b4 29. Nb3 Qd5 30. Qc2 g5 31. e4 Qe5 32. hxg5 Nxg5 33. Qc8+ Kg7 34. Qf5 Qxf5 35. exf5 Kf6 36. Kg2 Kxf5 37. Nxa5 1-0